[Event "44th Chess Olympiad Open 2022"]
[Site "Chennai"]
[Date "2022.08.08"]
[Round "10.50"]
[White "Gavarrete, Joel"]
[Black "Arias, Lemnys A."]
[Result "1/2-1/2"]
[WhiteElo "2035"]
[BlackElo "2258"]
[Annotator "NA RC"]
[PlyCount "84"]
[EventDate "2022.??.??"]
[TimeControl "60"]

1. Nf3 {[%emt 0:00:31]} d5 {[%emt 0:00:16]} 2. b3 {[%emt 0:00:34]} Bg4 {
[%emt 0:06:02]} 3. e3 {[%emt 0:09:59]} Nd7 {[%emt 0:00:00]} 4. Bb2 {[%emt 0:00:
00]} e6 {[%emt 0:00:00]} 5. Be2 {[%emt 0:00:34]} c6 {[%emt 0:00:00]} 6. d4 {
[%emt 0:00:36]} Ngf6 {[%emt 0:00:00]} 7. Nbd2 {[%emt 0:01:56]} a5 {[%emt 0:00:
00]} 8. a4 {[%emt 0:01:08]} Bb4 {[%emt 0:00:00]} 9. O-O {[%emt 0:00:26]} O-O {
[%emt 0:00:00]} 10. Ne5 {[%emt 0:05:59]} Bf5 {[%emt 0:03:39]} 11. Bd3 {[%emt 0:
00:00]} Qc7 {[%emt 0:03:05]} 12. Nxd7 {[%emt 0:03:44]} Qxd7 {[%emt 0:03:37]}
13. Nf3 {[%emt 0:00:52]} Ne4 {[%emt 0:01:28]} 14. Bxe4 {[%emt 0:05:23]} Bxe4 {
[%emt 0:00:39]} 15. Ne5 {[%emt 0:02:33]} Qe8 {[%emt 0:00:09]} 16. Nd3 {[%emt 0:
00:00]} Bxd3 {[%emt 0:03:41]} 17. Qxd3 {[%emt 0:00:07]} Qd7 {[%emt 0:03:02]}
18. c3 {[%emt 0:02:45]} Bd6 {[%emt 0:00:19]} 19. Ba3 {[%emt 0:04:23]} Bxa3 {
[%emt 0:00:41]} 20. Rxa3 {[%emt 0:00:06]} Qd6 {[%emt 0:00:04]} 21. Ra2 {
[%emt 0:00:33]} e5 {[%emt 0:00:26]} 22. dxe5 {[%emt 0:00:44]} Qxe5 {[%emt 0:00:
00]} 23. Qd4 {[%emt 0:01:12]} Qxd4 {[%emt 0:00:15]} 24. cxd4 {[%emt 0:00:07]}
Ra6 {[%emt 0:00:07]} 25. g3 {[%emt 0:03:47]} Rb6 {[%emt 0:00:25]} 26. Rb2 {
[%emt 0:00:33]} Rb4 {[%emt 0:00:17]} 27. Rc1 {[%emt 0:00:21]} f6 {[%emt 0:00:
00]} 28. Rc5 {[%emt 0:00:16]} Ra8 {[%emt 0:00:09]} 29. Kf1 {[%emt 0:00:50]} Kf7
{[%emt 0:00:07]} 30. Ke2 {[%emt 0:00:41]} Ke6 {[%emt 0:00:07]} 31. Kd2 {
[%emt 0:00:45]} Kd6 {[%emt 0:00:10]} 32. Rc3 {[%emt 0:01:31]} g5 {[%emt 0:00:
00]} 33. g4 {[%emt 0:04:06]} h5 {[%emt 0:00:18]} 34. h3 {[%emt 0:00:17]} hxg4 {
[%emt 0:00:20]} 35. hxg4 {[%emt 0:00:04]} Rh8 {[%emt 0:00:33]} 36. Rb1 {
[%emt 0:11:10]} Rh4 {[%emt 0:07:53]} 37. Rg1 {[%emt 0:00:17]} Rh2 {[%emt 0:00:
00]} 38. Ke2 {[%emt 0:00:17]} Rh4 {[%emt 0:01:33]} 39. Kd2 {[%emt 0:00:39]} Rh7
{[%emt 0:01:09]} 40. Rgc1 {[%emt 0:03:02]} Rh2 {[%emt 0:06:11]} 41. Ke2 {
[%emt 0:30:10]} Ke6 {[%emt 0:30:44]} 42. Rb1 {[%emt 0:03:59]} Rh4 {[%emt 0:00:
00]} 1/2-1/2

[Event "44th Chess Olympiad Open 2022"]
[Site "Chennai"]
[Date "2022.08.08"]
[Round "10.51"]
[White "Mc Intosh, Isaiah"]
[Black "Al Busaidi, Hamood"]
[Result "1-0"]
[WhiteElo "2215"]
[BlackElo "1743"]
[Annotator "NA RC"]
[PlyCount "67"]
[EventDate "2022.??.??"]
[TimeControl "60"]

1. d4 {[%emt 0:00:03]} Nf6 {[%emt 0:01:08]} 2. c4 {[%emt 0:00:06]} g6 {[%emt 0:
00:00]} 3. Nc3 {[%emt 0:00:05]} Bg7 {[%emt 0:00:03]} 4. e4 {[%emt 0:00:05]} d6
{[%emt 0:00:02]} 5. Be2 {[%emt 0:00:05]} O-O {[%emt 0:00:05]} 6. Be3 {[%emt 0:
00:00]} Na6 {[%emt 0:00:10]} 7. h3 {[%emt 0:00:07]} c5 {[%emt 0:00:09]} 8. Nf3
{[%emt 0:00:05]} cxd4 {[%emt 0:00:43]} 9. Nxd4 {[%emt 0:00:08]} Nc5 {[%emt 0:
00:00]} 10. Qc2 {[%emt 0:00:05]} a5 {[%emt 0:00:16]} 11. O-O {[%emt 0:03:52]}
b6 {[%emt 0:05:23]} 12. Rfd1 {[%emt 0:06:13]} Bb7 {[%emt 0:03:38]} 13. Bf3 {
[%emt 0:00:09]} Nfd7 {[%emt 0:03:38]} 14. Rac1 {[%emt 0:00:26]} Ne6 {[%emt 0:
00:00]} 15. Nxe6 {[%emt 0:01:21]} fxe6 {[%emt 0:00:10]} 16. Bg4 {[%emt 0:00:03]
} Kf7 {[%emt 0:07:31]} 17. f4 {[%emt 0:00:49]} h5 {[%emt 0:29:42]} 18. Be2 {
[%emt 0:11:48]} Bh6 {[%emt 0:00:00]} 19. Rf1 {[%emt 0:01:16]} Rc8 {[%emt 0:00:
00]} 20. Qd2 {[%emt 0:01:03]} Nf6 {[%emt 0:00:41]} 21. Bd3 {[%emt 0:05:43]} Qc7
{[%emt 0:02:28]} 22. Kh1 {[%emt 0:01:57]} Bg7 {[%emt 0:05:26]} 23. Qf2 {
[%emt 0:01:51]} Nd7 {[%emt 0:00:44]} 24. Qg3 {[%emt 0:00:29]} h4 {[%emt 0:00:
00]} 25. Qg4 {[%emt 0:02:40]} Rh8 {[%emt 0:01:48]} 26. e5 {[%emt 0:05:44]} Nf8
{[%emt 0:04:39]} 27. f5 {[%emt 0:16:13]} exf5 {[%emt 0:03:50]} 28. Bxf5 {
[%emt 0:01:33]} gxf5 {[%emt 0:00:56]} 29. Qxf5+ {[%emt 0:00:10]} Kg8 {[%emt 0:
00:00]} 30. Qf7+ {[%emt 0:00:18]} Kh7 {[%emt 0:00:29]} 31. Rf5 {[%emt 0:00:04]}
Bxg2+ {[%emt 0:02:17]} 32. Kxg2 {[%emt 0:00:23]} Qc6+ {[%emt 0:00:01]} 33. Nd5
{[%emt 0:00:16]} dxe5 {[%emt 0:01:00]} 34. Rh5+ {[%emt 0:00:06]} 1-0

[Event "44th Chess Olympiad Open 2022"]
[Site "Chennai"]
[Date "2022.08.08"]
[Round "10.51"]
[White "Harper, Ryan"]
[Black "Al Maashani, Amer"]
[Result "1-0"]
[WhiteElo "2208"]
[BlackElo "1947"]
[Annotator "RC"]
[PlyCount "99"]
[EventDate "2022.??.??"]
[TimeControl "60"]

1. e4 {[%emt 0:00:03]} c5 {[%emt 0:00:08]} 2. Nf3 {[%emt 0:00:06]} Nc6 {
[%emt 0:00:05]} 3. d4 {[%emt 0:00:09]} cxd4 {[%emt 0:00:17]} 4. Nxd4 {[%emt 0:
00:00]} Nf6 {[%emt 0:00:05]} 5. Nc3 {[%emt 0:00:05]} e5 {[%emt 0:00:08]} 6.
Ndb5 {[%emt 0:00:06]} d6 {[%emt 0:00:08]} 7. Nd5 {[%emt 0:04:33]} Nxd5 {
[%emt 0:00:12]} 8. exd5 {[%emt 0:00:06]} Nb8 {[%emt 0:00:22]} 9. a4 {[%emt 0:
00:00]} Be7 {[%emt 0:00:57]} 10. Be2 {[%emt 0:01:59]} O-O {[%emt 0:00:15]} 11.
O-O {[%emt 0:00:05]} f5 {[%emt 0:01:46]} 12. f4 {[%emt 0:00:41]} a6 {[%emt 0:
00:00]} 13. Na3 {[%emt 0:00:06]} Nd7 {[%emt 0:11:07]} 14. Nc4 {[%emt 0:14:35]}
exf4 {[%emt 0:11:17]} 15. Bxf4 {[%emt 0:01:26]} a5 {[%emt 0:06:42]} 16. Be3 {
[%emt 0:08:51]} b6 {[%emt 0:02:10]} 17. Na3 {[%emt 0:05:24]} Bf6 {[%emt 0:00:
00]} 18. Bd4 {[%emt 0:05:00]} Nc5 {[%emt 0:01:22]} 19. Bb5 {[%emt 0:04:15]} Ra7
{[%emt 0:03:27]} 20. Nc4 {[%emt 0:03:41]} Re7 {[%emt 0:01:00]} 21. Bxc5 {
[%emt 0:21:21]} bxc5 {[%emt 0:00:37]} 22. Qd2 {[%emt 0:00:23]} Re4 {[%emt 0:00:
00]} 23. Rae1 {[%emt 0:05:43]} Rh4 {[%emt 0:04:57]} 24. c3 {[%emt 0:03:05]} Bg5
{[%emt 0:02:18]} 25. Qd3 {[%emt 0:06:13]} f4 {[%emt 0:01:53]} 26. Rf2 {[%emt 0:
00:00]} Bf5 {[%emt 0:02:57]} 27. Qf1 {[%emt 0:03:16]} Qf6 {[%emt 0:01:58]} 28.
Nd2 {[%emt 0:00:49]} Rh6 {[%emt 0:07:42]} 29. Ne4 {[%emt 0:01:06]} Qg6 {
[%emt 0:08:43]} 30. Nxg5 {[%emt 0:00:18]} Qxg5 {[%emt 0:00:02]} 31. Rxf4 {
[%emt 0:00:21]} Qh5 {[%emt 0:00:24]} 32. h3 {[%emt 0:00:18]} Rhf6 {[%emt 0:00:
00]} 33. Qf3 {[%emt 0:01:25]} Qf7 {[%emt 0:04:25]} 34. Bc4 {[%emt 0:01:22]} g5
{[%emt 0:00:39]} 35. Qg3 {[%emt 0:00:05]} Qg6 {[%emt 0:01:11]} 36. Rf2 {
[%emt 0:00:05]} h5 {[%emt 0:01:12]} 37. Bb5 {[%emt 0:00:14]} h4 {[%emt 0:00:38]
} 38. Qe3 {[%emt 0:00:09]} g4 {[%emt 0:01:21]} 39. hxg4 {[%emt 0:00:07]} Qxg4 {
[%emt 0:01:51]} 40. Rf4 {[%emt 0:00:43]} Qg5 {[%emt 0:00:34]} 41. Rf3 {[%emt 0:
00:00]} Qg7 {[%emt 0:07:27]} 42. Ref1 {[%emt 0:08:14]} h3 {[%emt 0:13:58]} 43.
Rg3 {[%emt 0:00:32]} Rg6 {[%emt 0:00:40]} 44. Rxf5 {[%emt 0:04:42]} h2+ {
[%emt 0:04:02]} 45. Kxh2 {[%emt 0:01:19]} Rxf5 {[%emt 0:02:54]} 46. Qe8+ {
[%emt 0:00:08]} Kh7 {[%emt 0:00:31]} 47. Rh3+ {[%emt 0:00:05]} Rh6 {[%emt 0:00:
00]} 48. Bd3 {[%emt 0:00:16]} Qf6 {[%emt 0:03:43]} 49. Qd7+ {[%emt 0:00:31]}
Kh8 {[%emt 0:00:34]} 50. Qxf5 {[%emt 0:00:11]} 1-0

[Event "44th Chess Olympiad Open 2022"]
[Site "Chennai"]
[Date "2022.08.08"]
[Round "10.51"]
[White "Salim Mohammed, Salim Al Amri"]
[Black "Johnson, Joshua"]
[Result "0-1"]
[WhiteElo "1917"]
[BlackElo "2178"]
[Annotator "NA RC"]
[PlyCount "118"]
[EventDate "2022.??.??"]
[TimeControl "60"]

1. e4 {[%emt 0:00:02]} e5 {[%emt 0:00:09]} 2. Nc3 {[%emt 0:00:06]} Nf6 {
[%emt 0:00:07]} 3. g3 {[%emt 0:00:05]} Bc5 {[%emt 0:00:10]} 4. Bg2 {[%emt 0:00:
00]} c6 {[%emt 0:00:03]} 5. Nf3 {[%emt 0:00:55]} d5 {[%emt 0:02:12]} 6. Nxe5 {
[%emt 0:02:15]} dxe4 {[%emt 0:00:49]} 7. O-O {[%emt 0:01:08]} Qd4 {[%emt 0:00:
00]} 8. Nxe4 {[%emt 0:12:40]} Qxe5 {[%emt 0:02:25]} 9. Re1 {[%emt 0:00:30]} O-O
{[%emt 0:01:22]} 10. c3 {[%emt 0:00:48]} Nxe4 {[%emt 0:26:09]} 11. Bxe4 {
[%emt 0:02:55]} Qf6 {[%emt 0:00:09]} 12. d4 {[%emt 0:00:06]} Bb6 {[%emt 0:00:
00]} 13. Bf4 {[%emt 0:00:11]} Bf5 {[%emt 0:14:30]} 14. Bxf5 {[%emt 0:02:04]}
Qxf5 {[%emt 0:00:03]} 15. Re5 {[%emt 0:02:31]} Qf6 {[%emt 0:01:30]} 16. Qg4 {
[%emt 0:01:09]} Na6 {[%emt 0:04:43]} 17. Rae1 {[%emt 0:01:11]} Bc7 {[%emt 0:00:
00]} 18. Rf5 {[%emt 0:01:37]} Qg6 {[%emt 0:02:35]} 19. Rg5 {[%emt 0:00:03]} f5
{[%emt 0:00:09]} 20. Qh4 {[%emt 0:13:24]} Bd8 {[%emt 0:04:19]} 21. Rxg6 {
[%emt 0:01:12]} Bxh4 {[%emt 0:00:03]} 22. Rd6 {[%emt 0:00:47]} Bf6 {[%emt 0:00:
00]} 23. Rd7 {[%emt 0:00:16]} Rf7 {[%emt 0:00:11]} 24. Rd6 {[%emt 0:01:18]} Nc7
{[%emt 0:00:49]} 25. Be5 {[%emt 0:02:41]} Rd8 {[%emt 0:03:06]} 26. Rxd8+ {
[%emt 0:02:31]} Bxd8 {[%emt 0:00:03]} 27. Bxc7 {[%emt 0:00:04]} Bxc7 {[%emt 0:
00:00]} 28. Re8+ {[%emt 0:00:08]} Rf8 {[%emt 0:00:04]} 29. Re7 {[%emt 0:00:05]}
Rc8 {[%emt 0:00:01]} 30. f4 {[%emt 0:00:32]} b5 {[%emt 0:01:30]} 31. b4 {
[%emt 0:00:49]} Kf8 {[%emt 0:01:03]} 32. Rd7 {[%emt 0:00:36]} Bb6 {[%emt 0:00:
00]} 33. Kf2 {[%emt 0:02:57]} Rc7 {[%emt 0:01:23]} 34. Rd8+ {[%emt 0:00:08]}
Ke7 {[%emt 0:01:50]} 35. Rh8 {[%emt 0:00:13]} h6 {[%emt 0:00:01]} 36. h4 {
[%emt 0:02:32]} a5 {[%emt 0:05:27]} 37. a3 {[%emt 0:00:45]} axb4 {[%emt 0:00:
00]} 38. axb4 {[%emt 0:00:06]} Ra7 {[%emt 0:00:06]} 39. Rg8 {[%emt 0:00:26]}
Ra3 {[%emt 0:06:34]} 40. Rxg7+ {[%emt 0:00:17]} Kf6 {[%emt 0:01:25]} 41. Rb7 {
[%emt 0:31:12]} Bd8 {[%emt 0:30:04]} 42. Rd7 {[%emt 0:02:00]} Be7 {[%emt 0:00:
00]} 43. d5 {[%emt 0:00:10]} Rxc3 {[%emt 0:04:00]} 44. dxc6 {[%emt 0:02:35]}
Bxb4 {[%emt 0:05:53]} 45. Rb7 {[%emt 0:13:50]} Bc5+ {[%emt 0:00:36]} 46. Ke2 {
[%emt 0:00:04]} b4 {[%emt 0:00:25]} 47. c7 {[%emt 0:01:14]} Bd6 {[%emt 0:00:57]
} 48. Rb6 {[%emt 0:01:34]} Ke6 {[%emt 0:00:35]} 49. Rb8 {[%emt 0:00:24]} Rxc7 {
[%emt 0:00:32]} 50. Rh8 {[%emt 0:00:04]} b3 {[%emt 0:00:49]} 51. Kd3 {[%emt 0:
00:00]} b2 {[%emt 0:00:37]} 52. Rb8 {[%emt 0:00:31]} Rc3+ {[%emt 0:00:03]} 53.
Kxc3 {[%emt 0:00:03]} Bxb8 {[%emt 0:00:05]} 54. Kxb2 {[%emt 0:00:20]} Kd5 {
[%emt 0:00:03]} 55. Kc2 {[%emt 0:04:35]} Ke4 {[%emt 0:00:10]} 56. g4 {[%emt 0:
00:00]} fxg4 {[%emt 0:00:07]} 57. Kd2 {[%emt 0:00:11]} Kxf4 {[%emt 0:00:21]}
58. Ke2 {[%emt 0:00:05]} Ba7 {[%emt 0:00:25]} 59. Kf1 {[%emt 0:00:02]} Kf3 {
[%emt 0:00:08]} 0-1

[Event "44th Chess Olympiad Open 2022"]
[Site "Chennai"]
[Date "2022.08.08"]
[Round "10.51"]
[White "Al Kathiri, Mana"]
[Black "Munro, Allan"]
[Result "1-0"]
[WhiteElo "1598"]
[BlackElo "2008"]
[Annotator "NA RC"]
[PlyCount "53"]
[EventDate "2022.??.??"]
[TimeControl "60"]

1. d4 {[%emt 0:00:05]} d5 {[%emt 0:00:09]} 2. Nf3 {[%emt 0:00:07]} Nf6 {
[%emt 0:00:28]} 3. Bf4 {[%emt 0:00:09]} c5 {[%emt 0:00:40]} 4. e3 {[%emt 0:00:
00]} Nc6 {[%emt 0:00:36]} 5. Nbd2 {[%emt 0:00:09]} cxd4 {[%emt 0:01:41]} 6.
exd4 {[%emt 0:00:15]} Bf5 {[%emt 0:01:09]} 7. c3 {[%emt 0:01:09]} Qb6 {[%emt 0:
00:00]} 8. Qb3 {[%emt 0:00:09]} Qxb3 {[%emt 0:01:19]} 9. axb3 {[%emt 0:00:34]}
e6 {[%emt 0:01:34]} 10. Nh4 {[%emt 0:00:49]} Bg4 {[%emt 0:02:56]} 11. h3 {
[%emt 0:01:01]} Bh5 {[%emt 0:00:15]} 12. g4 {[%emt 0:00:01]} Bg6 {[%emt 0:00:
00]} 13. Nxg6 {[%emt 0:00:31]} hxg6 {[%emt 0:00:08]} 14. Bg2 {[%emt 0:00:07]}
Be7 {[%emt 0:04:26]} 15. b4 {[%emt 0:00:48]} Bd8 {[%emt 0:27:42]} 16. O-O {
[%emt 0:04:17]} Nd7 {[%emt 0:02:46]} 17. Rfe1 {[%emt 0:02:28]} O-O {[%emt 0:00:
00]} 18. b5 {[%emt 0:02:48]} Ne7 {[%emt 0:01:33]} 19. Bd6 {[%emt 0:00:37]} Re8
{[%emt 0:01:18]} 20. c4 {[%emt 0:00:57]} Nb6 {[%emt 0:02:59]} 21. c5 {[%emt 0:
00:00]} Nbc8 {[%emt 0:02:19]} 22. Bg3 {[%emt 0:03:29]} g5 {[%emt 0:01:12]} 23.
b4 {[%emt 0:01:06]} Kf8 {[%emt 0:00:23]} 24. Bf1 {[%emt 0:08:46]} Ng6 {[%emt 0:
00:00]} 25. Nf3 {[%emt 0:08:52]} Bf6 {[%emt 0:02:42]} 26. Ra3 {[%emt 0:05:14]}
Nf4 {[%emt 0:08:15]} 27. h4 {[%emt 0:02:41]} 1-0

[Event "44th Chess Olympiad Open 2022"]
[Site "Chennai"]
[Date "2022.08.08"]
[Round "10.52"]
[White "Nielsen, Hogni Egilstoft"]
[Black "Cilia Vincenti, David"]
[Result "1-0"]
[WhiteElo "2414"]
[BlackElo "1904"]
[Annotator "RC"]
[PlyCount "51"]
[EventDate "2022.??.??"]
[TimeControl "60"]

1. e4 {[%emt 0:00:07]} c6 {[%emt 0:00:07]} 2. Nc3 {[%emt 0:03:12]} d5 {[%emt 0:
00:00]} 3. Nf3 {[%emt 0:00:09]} dxe4 {[%emt 0:00:09]} 4. Nxe4 {[%emt 0:00:12]}
Nf6 {[%emt 0:00:07]} 5. Qe2 {[%emt 0:01:15]} Nxe4 {[%emt 0:00:09]} 6. Qxe4 {
[%emt 0:00:08]} Nd7 {[%emt 0:00:07]} 7. g3 {[%emt 0:10:19]} Nf6 {[%emt 0:00:55]
} 8. Qe2 {[%emt 0:01:50]} Bf5 {[%emt 0:03:31]} 9. d4 {[%emt 0:05:35]} e6 {
[%emt 0:09:01]} 10. Bg2 {[%emt 0:01:49]} Bd6 {[%emt 0:01:50]} 11. O-O {[%emt 0:
00:00]} h6 {[%emt 0:00:57]} 12. Ne5 {[%emt 0:16:36]} O-O {[%emt 0:02:00]} 13.
b3 {[%emt 0:12:43]} a5 {[%emt 0:02:26]} 14. a3 {[%emt 0:03:40]} Qe7 {[%emt 0:
00:00]} 15. Bb2 {[%emt 0:04:28]} Rfd8 {[%emt 0:03:03]} 16. Nc4 {[%emt 0:05:30]}
Bc7 {[%emt 0:00:54]} 17. h3 {[%emt 0:00:05]} Nd5 {[%emt 0:04:33]} 18. Rad1 {
[%emt 0:07:39]} Qg5 {[%emt 0:05:57]} 19. Ne5 {[%emt 0:02:56]} Qe7 {[%emt 0:00:
00]} 20. c4 {[%emt 0:02:48]} Nf6 {[%emt 0:00:48]} 21. f4 {[%emt 0:02:54]} Bd6 {
[%emt 0:02:05]} 22. g4 {[%emt 0:02:54]} Bh7 {[%emt 0:00:01]} 23. g5 {[%emt 0:
00:00]} Bxe5 {[%emt 0:02:10]} 24. fxe5 {[%emt 0:01:30]} Nd7 {[%emt 0:00:13]}
25. gxh6 {[%emt 0:00:03]} gxh6 {[%emt 0:00:20]} 26. Bc1 {[%emt 0:01:11]} 1-0

[Event "44th Chess Olympiad Open 2022"]
[Site "Chennai"]
[Date "2022.08.08"]
[Round "10.52"]
[White "Rodgaard, John"]
[Black "Vella, Duncan"]
[Result "1/2-1/2"]
[WhiteElo "2324"]
[BlackElo "1985"]
[Annotator "RC"]
[PlyCount "97"]
[EventDate "2022.??.??"]
[TimeControl "60"]

1. Nf3 {[%emt 0:00:17]} c5 {[%emt 0:00:16]} 2. c4 {[%emt 0:00:31]} Nc6 {
[%emt 0:00:21]} 3. d4 {[%emt 0:01:05]} cxd4 {[%emt 0:00:36]} 4. Nxd4 {[%emt 0:
00:00]} g6 {[%emt 0:01:15]} 5. e4 {[%emt 0:01:47]} Nf6 {[%emt 0:01:24]} 6. Nc3
{[%emt 0:02:18]} d6 {[%emt 0:01:00]} 7. Be2 {[%emt 0:01:49]} Nxd4 {[%emt 0:00:
00]} 8. Qxd4 {[%emt 0:00:14]} Bg7 {[%emt 0:00:45]} 9. Be3 {[%emt 0:01:53]} O-O
{[%emt 0:00:36]} 10. Qd2 {[%emt 0:01:06]} a5 {[%emt 0:02:50]} 11. f3 {[%emt 0:
00:00]} a4 {[%emt 0:00:49]} 12. O-O {[%emt 0:22:19]} Qa5 {[%emt 0:03:35]} 13.
Rab1 {[%emt 0:06:22]} Be6 {[%emt 0:02:19]} 14. Rfc1 {[%emt 0:05:58]} Rfc8 {
[%emt 0:02:32]} 15. Nb5 {[%emt 0:04:59]} Qxd2 {[%emt 0:08:57]} 16. Bxd2 {
[%emt 0:00:03]} Nd7 {[%emt 0:02:39]} 17. Be3 {[%emt 0:05:31]} Nc5 {[%emt 0:00:
00]} 18. Nd4 {[%emt 0:02:54]} Bd7 {[%emt 0:02:42]} 19. Kf1 {[%emt 0:04:51]} Ne6
{[%emt 0:09:19]} 20. Nc2 {[%emt 0:06:56]} Nc5 {[%emt 0:03:58]} 21. Nb4 {
[%emt 0:01:29]} a3 {[%emt 0:11:52]} 22. b3 {[%emt 0:03:15]} Bb2 {[%emt 0:01:21]
} 23. Rd1 {[%emt 0:01:52]} Be6 {[%emt 0:03:33]} 24. Nd5 {[%emt 0:05:59]} Bxd5 {
[%emt 0:00:55]} 25. exd5 {[%emt 0:00:08]} Na6 {[%emt 0:10:04]} 26. Bd2 {
[%emt 0:01:41]} Kf8 {[%emt 0:04:16]} 27. Be1 {[%emt 0:01:42]} Nc5 {[%emt 0:00:
00]} 28. Rd2 {[%emt 0:02:54]} Ra6 {[%emt 0:02:28]} 29. Rc2 {[%emt 0:02:07]} Nd7
{[%emt 0:04:14]} 30. Bd3 {[%emt 0:01:54]} Raa8 {[%emt 0:02:29]} 31. Ke2 {
[%emt 0:02:00]} Ne5 {[%emt 0:01:35]} 32. f4 {[%emt 0:00:42]} Nd7 {[%emt 0:00:
00]} 33. b4 {[%emt 0:01:31]} b5 {[%emt 0:01:22]} 34. cxb5 {[%emt 0:00:43]} Nb6
{[%emt 0:00:05]} 35. Rxc8+ {[%emt 0:00:55]} Rxc8 {[%emt 0:00:01]} 36. Be4 {
[%emt 0:00:36]} Rc4 {[%emt 0:00:58]} 37. Bf3 {[%emt 0:00:50]} Rxf4 {[%emt 0:00:
00]} 38. Rd1 {[%emt 0:00:39]} Na4 {[%emt 0:01:09]} 39. Rd3 {[%emt 0:00:44]} Rc4
{[%emt 0:00:41]} 40. Bd2 {[%emt 0:00:27]} Bc3 {[%emt 0:01:28]} 41. b6 {[%emt 0:
00:00]} Bxd2 {[%emt 0:04:07]} 42. b7 {[%emt 0:00:13]} Rxb4 {[%emt 0:00:04]} 43.
Rb3 {[%emt 0:00:12]} Rxb7 {[%emt 0:05:56]} 44. Rxb7 {[%emt 0:00:04]} Bc1 {
[%emt 0:00:11]} 45. Rb8+ {[%emt 0:01:42]} Kg7 {[%emt 0:00:02]} 46. Kd3 {
[%emt 0:00:38]} Bb2 {[%emt 0:02:51]} 47. Bd1 {[%emt 0:01:58]} Nc5+ {[%emt 0:00:
00]} 48. Kc4 {[%emt 0:00:56]} Kf6 {[%emt 0:01:45]} 49. Re8 {[%emt 0:02:25]}
1/2-1/2

[Event "44th Chess Olympiad Open 2022"]
[Site "Chennai"]
[Date "2022.08.08"]
[Round "10.52"]
[White "Pace, Colin"]
[Black "Egilstoft, Rogvi"]
[Result "0-1"]
[WhiteElo "2159"]
[BlackElo "2284"]
[Annotator "NA RC"]
[PlyCount "86"]
[EventDate "2022.??.??"]
[TimeControl "60"]

1. e4 {[%emt 0:00:05]} e5 {[%emt 0:00:18]} 2. Nf3 {[%emt 0:00:09]} Nc6 {
[%emt 0:00:25]} 3. Bc4 {[%emt 0:00:07]} Bc5 {[%emt 0:00:20]} 4. c3 {[%emt 0:00:
00]} Nf6 {[%emt 0:00:43]} 5. d4 {[%emt 0:00:14]} exd4 {[%emt 0:00:53]} 6. O-O {
[%emt 0:00:17]} d6 {[%emt 0:12:48]} 7. cxd4 {[%emt 0:09:56]} Bb6 {[%emt 0:00:
00]} 8. h3 {[%emt 0:10:53]} h6 {[%emt 0:00:40]} 9. Nc3 {[%emt 0:01:37]} O-O {
[%emt 0:06:07]} 10. Re1 {[%emt 0:07:37]} Re8 {[%emt 0:07:09]} 11. Bb3 {[%emt 0:
00:00]} Ba5 {[%emt 0:19:48]} 12. Bc2 {[%emt 0:08:54]} Ne7 {[%emt 0:04:17]} 13.
Qd3 {[%emt 0:03:52]} d5 {[%emt 0:07:30]} 14. Nd2 {[%emt 0:09:45]} dxe4 {
[%emt 0:06:17]} 15. Ndxe4 {[%emt 0:01:28]} Nxe4 {[%emt 0:00:24]} 16. Nxe4 {
[%emt 0:01:37]} Bf5 {[%emt 0:03:01]} 17. Rd1 {[%emt 0:05:02]} Bg6 {[%emt 0:00:
00]} 18. d5 {[%emt 0:03:20]} Bb6 {[%emt 0:01:12]} 19. Qc4 {[%emt 0:01:23]} Nf5
{[%emt 0:05:28]} 20. d6 {[%emt 0:03:36]} cxd6 {[%emt 0:07:37]} 21. Ba4 {
[%emt 0:04:13]} Qh4 {[%emt 0:01:47]} 22. Bxe8 {[%emt 0:04:38]} Rxe8 {[%emt 0:
00:00]} 23. Bf4 {[%emt 0:05:29]} Nd4 {[%emt 0:07:12]} 24. Rxd4 {[%emt 0:05:42]}
Bxd4 {[%emt 0:00:49]} 25. g3 {[%emt 0:00:21]} Qxh3 {[%emt 0:03:20]} 26. Nxd6 {
[%emt 0:00:33]} Bxf2+ {[%emt 0:00:09]} 27. Kxf2 {[%emt 0:00:08]} Qh2+ {[%emt 0:
00:00]} 28. Kf1 {[%emt 0:02:37]} Re6 {[%emt 0:00:12]} 29. Rc1 {[%emt 0:01:13]}
Qh1+ {[%emt 0:00:41]} 30. Kf2 {[%emt 0:00:05]} Qh2+ {[%emt 0:00:03]} 31. Kf1 {
[%emt 0:00:12]} Kh7 {[%emt 0:01:37]} 32. Qd4 {[%emt 0:03:14]} Qh3+ {[%emt 0:00:
00]} 33. Kf2 {[%emt 0:00:33]} Qh2+ {[%emt 0:00:30]} 34. Kf1 {[%emt 0:00:01]}
Qh3+ {[%emt 0:00:57]} 35. Kf2 {[%emt 0:00:03]} Bh5 {[%emt 0:00:40]} 36. Qd3+ {
[%emt 0:01:54]} g6 {[%emt 0:00:04]} 37. Ne4 {[%emt 0:00:25]} Qh2+ {[%emt 0:00:
00]} 38. Ke3 {[%emt 0:00:23]} g5 {[%emt 0:01:48]} 39. Bb8 {[%emt 0:00:42]} Qg2
{[%emt 0:00:31]} 40. Rf1 {[%emt 0:00:48]} Bg6 {[%emt 0:00:18]} 41. Rxf7+ {
[%emt 0:06:28]} Bxf7 {[%emt 0:00:25]} 42. Bxa7 {[%emt 0:00:46]} Qxg3+ {[%emt 0:
00:00]} 43. Kd2 {[%emt 0:00:35]} Qxd3+ {[%emt 0:00:09]} 0-1

[Event "44th Chess Olympiad Open 2022"]
[Site "Chennai"]
[Date "2022.08.08"]
[Round "10.52"]
[White "Darmanin, Jake"]
[Black "Ziska, Helgi Dam"]
[Result "0-1"]
[WhiteElo "2101"]
[BlackElo "2549"]
[Annotator "RC"]
[PlyCount "84"]
[EventDate "2022.??.??"]
[TimeControl "60"]

1. e4 {[%emt 0:00:06]} c5 {[%emt 0:00:09]} 2. Nf3 {[%emt 0:00:08]} d6 {[%emt 0:
00:00]} 3. c3 {[%emt 0:00:14]} Nf6 {[%emt 0:00:31]} 4. h3 {[%emt 0:00:12]} g6 {
[%emt 0:00:37]} 5. Bd3 {[%emt 0:01:31]} Bg7 {[%emt 0:00:50]} 6. O-O {[%emt 0:
00:00]} O-O {[%emt 0:00:17]} 7. Bc2 {[%emt 0:00:17]} e5 {[%emt 0:01:19]} 8. d4
{[%emt 0:00:53]} exd4 {[%emt 0:01:00]} 9. cxd4 {[%emt 0:00:05]} Nc6 {[%emt 0:
00:00]} 10. Nc3 {[%emt 0:05:15]} cxd4 {[%emt 0:01:21]} 11. Nxd4 {[%emt 0:00:19]
} d5 {[%emt 0:00:18]} 12. Nxc6 {[%emt 0:15:03]} bxc6 {[%emt 0:00:09]} 13. exd5
{[%emt 0:03:51]} Nxd5 {[%emt 0:00:43]} 14. Nxd5 {[%emt 0:06:29]} cxd5 {[%emt 0:
00:00]} 15. Rb1 {[%emt 0:08:27]} Rb8 {[%emt 0:15:21]} 16. b4 {[%emt 0:04:07]}
Ba6 {[%emt 0:09:58]} 17. Bd3 {[%emt 0:06:39]} Bc4 {[%emt 0:04:16]} 18. Bxc4 {
[%emt 0:02:59]} dxc4 {[%emt 0:00:07]} 19. Qc2 {[%emt 0:00:10]} c3 {[%emt 0:00:
00]} 20. Be3 {[%emt 0:02:18]} Qh4 {[%emt 0:03:30]} 21. b5 {[%emt 0:07:00]} Qc4
{[%emt 0:02:23]} 22. a4 {[%emt 0:01:34]} Rb7 {[%emt 0:00:16]} 23. Rfd1 {
[%emt 0:03:16]} Re8 {[%emt 0:09:42]} 24. Rd3 {[%emt 0:04:44]} h5 {[%emt 0:00:
00]} 25. Rbd1 {[%emt 0:02:31]} Re4 {[%emt 0:01:55]} 26. Ra1 {[%emt 0:08:53]}
Kh7 {[%emt 0:00:33]} 27. Rd6 {[%emt 0:08:04]} Rbe7 {[%emt 0:04:26]} 28. Rc6 {
[%emt 0:00:49]} Qb4 {[%emt 0:00:45]} 29. Ra6 {[%emt 0:02:38]} Bd4 {[%emt 0:00:
00]} 30. Rb1 {[%emt 0:01:38]} Qc5 {[%emt 0:00:14]} 31. Rc6 {[%emt 0:00:21]} Qf5
{[%emt 0:00:15]} 32. Rf1 {[%emt 0:01:42]} Bg7 {[%emt 0:01:30]} 33. Bc5 {
[%emt 0:01:29]} Rd7 {[%emt 0:01:12]} 34. f3 {[%emt 0:00:22]} Rc4 {[%emt 0:00:
00]} 35. Qxf5 {[%emt 0:00:40]} gxf5 {[%emt 0:00:01]} 36. Be3 {[%emt 0:01:44]}
Rxa4 {[%emt 0:07:07]} 37. Rc1 {[%emt 0:00:14]} Rd5 {[%emt 0:07:36]} 38. b6 {
[%emt 0:01:02]} axb6 {[%emt 0:00:14]} 39. Rxb6 {[%emt 0:00:11]} Rd3 {[%emt 0:
00:00]} 40. Bf2 {[%emt 0:01:13]} Ra2 {[%emt 0:03:03]} 41. Rc6 {[%emt 0:05:33]}
Rdd2 {[%emt 0:00:30]} 42. Be3 {[%emt 0:03:20]} Rxg2+ {[%emt 0:00:59]} 0-1